[Event "Titled Tuesday Blitz June 07 Late 2022"]
[White "Ivanisevic, Ivan"]
[Black "Adewumi, Tanitoluwa"]
[WhiteFideId "912417"]
[BlackFideId "30966396"]
[WhiteElo "2535"]
[BlackElo "2530"]
[Result "1-0"]
[Round "04"]
[TimeControl "180+1"]
[Date "2022.06.07"]
[WhiteClock "0:01:48"]
[BlackClock "0:00:17"]

1. d4 {[%clk 0:03:00]}  Nf6 {[%clk 0:02:56]} 2. c4 {[%clk 0:03:01]}  e6 {[%clk 0:02:56]} 3. g3 {[%clk 0:03:01]}  d5 {[%clk 0:02:52]} 4. Bg2 {[%clk 0:03:01]}  Bb4+ {[%clk 0:02:52]} 5. Bd2 {[%clk 0:03:00]}  Be7 {[%clk 0:02:53]} 6. Nc3 {[%clk 0:02:55]}  O-O {[%clk 0:02:53]} 7. cxd5 {[%clk 0:02:56]}  exd5 {[%clk 0:02:52]} 8. e3 {[%clk 0:02:56]}  c6 {[%clk 0:02:53]} 9. Nge2 {[%clk 0:02:55]}  Bf5 {[%clk 0:02:52]} 10. O-O {[%clk 0:02:55]}  Nbd7 {[%clk 0:02:52]} 11. f3 {[%clk 0:02:53]}  c5 {[%clk 0:02:45]} 12. g4 {[%clk 0:02:52]}  Bg6 {[%clk 0:02:41]} 13. g5 {[%clk 0:02:48]}  Nh5 {[%clk 0:02:40]} 14. f4 {[%clk 0:02:47]}  Bd3 {[%clk 0:02:20]} 15. Nxd5 {[%clk 0:02:42]}  cxd4 {[%clk 0:01:45]} 16. Nxd4 {[%clk 0:02:43]}  Bxf1 {[%clk 0:01:43]} 17. Nf5 {[%clk 0:02:44]}  Bc5 {[%clk 0:01:05]} 18. Kxf1 {[%clk 0:02:43]}  g6 {[%clk 0:01:03]} 19. Nh6+ {[%clk 0:02:39]}  Kg7 {[%clk 0:01:01]} 20. Bc3+ {[%clk 0:02:39]}  f6 {[%clk 0:01:00]} 21. Bf3 {[%clk 0:02:20]}  Rc8 {[%clk 0:00:32]} 22. Bxh5 {[%clk 0:02:19]}  gxh5 {[%clk 0:00:31]} 23. Qxh5 {[%clk 0:02:18]}  Qe8 {[%clk 0:00:24]} 24. gxf6+ {[%clk 0:02:16]}  Nxf6 {[%clk 0:00:23]} 25. Nf5+ {[%clk 0:01:57]}  Kh8 {[%clk 0:00:18]} 26. Qxe8 {[%clk 0:01:49]}  Rcxe8 {[%clk 0:00:17]} 27. Nxf6 {[%clk 0:01:48]} 1-0


[Site "https://www.chess.com"]

[Event "Titled Tuesday Blitz June 07 Late 2022"]
[White "Licznerski, Lukasz"]
[Black "Grigoriants, Sergey"]
[WhiteFideId "1179250"]
[BlackFideId "4130804"]
[WhiteElo "2387"]
[BlackElo "2502"]
[Result "1/2-1/2"]
[Round "04"]
[TimeControl "180+1"]
[Date "2022.06.07"]
[WhiteClock "0:00:03"]
[BlackClock "0:00:08"]

1. e4 {[%clk 0:03:00]}  e5 {[%clk 0:02:55]} 2. Nf3 {[%clk 0:03:00]}  Nc6 {[%clk 0:02:55]} 3. Bb5 {[%clk 0:03:00]}  a6 {[%clk 0:02:55]} 4. Bxc6 {[%clk 0:03:01]}  dxc6 {[%clk 0:02:54]} 5. O-O {[%clk 0:03:02]}  Bd6 {[%clk 0:02:54]} 6. d4 {[%clk 0:03:02]}  exd4 {[%clk 0:02:53]} 7. Qxd4 {[%clk 0:03:03]}  f6 {[%clk 0:02:53]} 8. Nbd2 {[%clk 0:03:03]}  Be6 {[%clk 0:02:51]} 9. Qc3 {[%clk 0:03:04]}  Qd7 {[%clk 0:02:37]} 10. Nc4 {[%clk 0:03:01]}  Bxc4 {[%clk 0:02:37]} 11. Qxc4 {[%clk 0:02:58]}  O-O-O {[%clk 0:02:37]} 12. a4 {[%clk 0:02:40]}  Ne7 {[%clk 0:02:25]} 13. b4 {[%clk 0:02:33]}  Ng6 {[%clk 0:02:25]} 14. Rb1 {[%clk 0:02:17]}  Rhe8 {[%clk 0:02:25]} 15. b5 {[%clk 0:02:07]}  cxb5 {[%clk 0:02:20]} 16. axb5 {[%clk 0:02:07]}  axb5 {[%clk 0:02:21]} 17. Rxb5 {[%clk 0:02:00]}  Rxe4 {[%clk 0:02:09]} 18. Qxe4 {[%clk 0:01:52]}  Qxb5 {[%clk 0:02:09]} 19. Be3 {[%clk 0:01:51]}  Re8 {[%clk 0:01:59]} 20. Qg4+ {[%clk 0:01:44]}  Qd7 {[%clk 0:01:38]} 21. Qh5 {[%clk 0:01:41]}  b6 {[%clk 0:00:57]} 22. Ra1 {[%clk 0:01:31]}  Kb8 {[%clk 0:00:51]} 23. Qxh7 {[%clk 0:01:22]}  Ne5 {[%clk 0:00:42]} 24. Qe4 {[%clk 0:01:10]}  Qc6 {[%clk 0:00:42]} 25. Qxc6 {[%clk 0:01:06]}  Nxc6 {[%clk 0:00:43]} 26. h4 {[%clk 0:01:01]}  Nb4 {[%clk 0:00:42]} 27. Rc1 {[%clk 0:00:58]}  Nd5 {[%clk 0:00:42]} 28. Bd2 {[%clk 0:00:56]}  Kb7 {[%clk 0:00:42]} 29. Kf1 {[%clk 0:00:52]}  Bf4 {[%clk 0:00:36]} 30. Bxf4 {[%clk 0:00:43]}  Nxf4 {[%clk 0:00:36]} 31. g3 {[%clk 0:00:44]}  Nd5 {[%clk 0:00:26]} 32. c4 {[%clk 0:00:43]}  Nb4 {[%clk 0:00:24]} 33. Nd4 {[%clk 0:00:44]}  g6 {[%clk 0:00:22]} 34. Rc3 {[%clk 0:00:39]}  Nc6 {[%clk 0:00:20]} 35. Nc2 {[%clk 0:00:27]}  f5 {[%clk 0:00:19]} 36. Ne3 {[%clk 0:00:25]}  Re4 {[%clk 0:00:18]} 37. Nd5 {[%clk 0:00:23]}  Ne5 {[%clk 0:00:14]} 38. Nf4 {[%clk 0:00:22]}  c5 {[%clk 0:00:05]} 39. f3 {[%clk 0:00:17]}  Rd4 {[%clk 0:00:06]} 40. Re3 {[%clk 0:00:17]}  Nxc4 {[%clk 0:00:05]} 41. Re7+ {[%clk 0:00:17]}  Ka6 {[%clk 0:00:06]} 42. Nxg6 {[%clk 0:00:18]}  b5 {[%clk 0:00:06]} 43. h5 {[%clk 0:00:17]}  b4 {[%clk 0:00:07]} 44. h6 {[%clk 0:00:18]}  b3 {[%clk 0:00:07]} 45. h7 {[%clk 0:00:17]}  b2 {[%clk 0:00:07]} 46. Re1 {[%clk 0:00:15]}  Rd8 {[%clk 0:00:07]} 47. h8=Q {[%clk 0:00:12]}  Rxh8 {[%clk 0:00:07]} 48. Nxh8 {[%clk 0:00:13]}  Na3 {[%clk 0:00:07]} 49. Ke2 {[%clk 0:00:13]}  Kb5 {[%clk 0:00:06]} 50. Nf7 {[%clk 0:00:08]}  Kc6 {[%clk 0:00:05]} 51. Nh6 {[%clk 0:00:07]}  f4 {[%clk 0:00:06]} 52. g4 {[%clk 0:00:08]}  c4 {[%clk 0:00:05]} 53. Kd2 {[%clk 0:00:07]}  b1=Q {[%clk 0:00:05]} 54. Rxb1 {[%clk 0:00:08]}  Nxb1+ {[%clk 0:00:05]} 55. Kc2 {[%clk 0:00:08]}  Na3+ {[%clk 0:00:06]} 56. Kc3 {[%clk 0:00:06]}  Kd5 {[%clk 0:00:06]} 57. Nf7 {[%clk 0:00:04]}  Nb5+ {[%clk 0:00:05]} 58. Kd2 {[%clk 0:00:03]}  Nd4 {[%clk 0:00:06]} 59. Ng5 {[%clk 0:00:03]}  Nc6 {[%clk 0:00:05]} 60. Nh3 {[%clk 0:00:01]}  Nd4 {[%clk 0:00:04]} 61. Ng1 {[%clk 0:00:01]}  Kc5 {[%clk 0:00:04]} 62. Kc3 {[%clk 0:00:02]}  Nb5+ {[%clk 0:00:04]} 63. Kd2 {[%clk 0:00:02]}  Nd4 {[%clk 0:00:05]} 64. Kc3 {[%clk 0:00:02]}  Kd5 {[%clk 0:00:05]} 65. Kd2 {[%clk 0:00:03]}  Kc6 {[%clk 0:00:05]} 66. Kc3 {[%clk 0:00:03]}  Kc5 {[%clk 0:00:06]} 67. Kd2 {[%clk 0:00:04]}  Kb4 {[%clk 0:00:06]} 68. g5 {[%clk 0:00:05]}  c3+ {[%clk 0:00:05]} 69. Kc1 {[%clk 0:00:04]}  c2 {[%clk 0:00:05]} 70. Kb2 {[%clk 0:00:03]}  Kc4 {[%clk 0:00:05]} 71. g6 {[%clk 0:00:03]}  Kd3 {[%clk 0:00:05]} 72. g7 {[%clk 0:00:03]}  Kd2 {[%clk 0:00:05]} 73. g8=Q {[%clk 0:00:02]}  c1=Q+ {[%clk 0:00:05]} 74. Ka2 {[%clk 0:00:03]}  Qc2+ {[%clk 0:00:06]} 75. Ka3 {[%clk 0:00:03]}  Qd3+ {[%clk 0:00:05]} 76. Ka4 {[%clk 0:00:02]}  Ke3 {[%clk 0:00:05]} 77. Qe8+ {[%clk 0:00:02]}  Kf2 {[%clk 0:00:05]} 78. Nh3+ {[%clk 0:00:02]}  Kg3 {[%clk 0:00:05]} 79. Ng5 {[%clk 0:00:03]}  Qa6+ {[%clk 0:00:05]} 80. Kb4 {[%clk 0:00:03]}  Qb6+ {[%clk 0:00:05]} 81. Kc4 {[%clk 0:00:03]}  Nf5 {[%clk 0:00:05]} 82. Ne4+ {[%clk 0:00:03]}  Kxf3 {[%clk 0:00:05]} 83. Nd2+ {[%clk 0:00:03]}  Kg3 {[%clk 0:00:05]} 84. Qe1+ {[%clk 0:00:03]}  Kg4 {[%clk 0:00:04]} 85. Qe2+ {[%clk 0:00:04]}  Kg5 {[%clk 0:00:04]} 86. Ne4+ {[%clk 0:00:03]}  Kh4 {[%clk 0:00:02]} 87. Qe1+ {[%clk 0:00:01]}  Kg4 {[%clk 0:00:02]} 88. Nc3 {[%clk 0:00:02]}  Ne3+ {[%clk 0:00:02]} 89. Kd3 {[%clk 0:00:03]}  Qa6+ {[%clk 0:00:02]} 90. Kd4 {[%clk 0:00:03]}  Qe6 {[%clk 0:00:03]} 91. Qe2+ {[%clk 0:00:02]}  Kf5 {[%clk 0:00:04]} 92. Qf3 {[%clk 0:00:02]}  Qf6+ {[%clk 0:00:05]} 93. Kd3 {[%clk 0:00:02]}  Qd8+ {[%clk 0:00:05]} 94. Ke2 {[%clk 0:00:02]}  Qd6 {[%clk 0:00:06]} 95. Qh5+ {[%clk 0:00:02]}  Ke6 {[%clk 0:00:06]} 96. Qg6+ {[%clk 0:00:02]}  Kd7 {[%clk 0:00:07]} 97. Qf7+ {[%clk 0:00:03]}  Kc6 {[%clk 0:00:07]} 98. Qb3 {[%clk 0:00:02]}  Nd5 {[%clk 0:00:06]} 99. Qb5+ {[%clk 0:00:02]}  Kc7 {[%clk 0:00:06]} 100. Nxd5+ {[%clk 0:00:03]}  Kd8 {[%clk 0:00:07]} 101. Qc4 {[%clk 0:00:03]}  Kd7 {[%clk 0:00:05]} 102. Kf3 {[%clk 0:00:03]}  Qc6 {[%clk 0:00:06]} 103. Qe4 {[%clk 0:00:02]}  Kd6 {[%clk 0:00:06]} 104. Qxf4+ {[%clk 0:00:01]}  Kxd5 {[%clk 0:00:06]} 105. Qe4+ {[%clk 0:00:02]}  Kc5 {[%clk 0:00:07]} 106. Qxc6+ {[%clk 0:00:03]}  Kxc6 {[%clk 0:00:08]} 1/2-1/2


[Site "https://www.chess.com"]

[Event "Titled Tuesday Blitz June 07 Late 2022"]
[White "Livaic, Leon"]
[Black "Jaracz, Pawel"]
[WhiteFideId "14531534"]
[BlackFideId "1102222"]
[WhiteElo "2540"]
[BlackElo "2459"]
[Result "1-0"]
[Round "04"]
[TimeControl "180+1"]
[Date "2022.06.07"]
[WhiteClock "0:00:36"]
[BlackClock "0:00:08"]

1. d4 {[%clk 0:03:00]}  Nf6 {[%clk 0:02:58]} 2. c4 {[%clk 0:03:01]}  e6 {[%clk 0:02:58]} 3. Nf3 {[%clk 0:03:00]}  b6 {[%clk 0:02:58]} 4. Bf4 {[%clk 0:03:00]}  Bb4+ {[%clk 0:02:56]} 5. Nfd2 {[%clk 0:02:59]}  Bb7 {[%clk 0:02:55]} 6. e3 {[%clk 0:02:58]}  Be7 {[%clk 0:02:54]} 7. Nc3 {[%clk 0:02:58]}  c5 {[%clk 0:02:49]} 8. d5 {[%clk 0:02:56]}  d6 {[%clk 0:02:20]} 9. e4 {[%clk 0:02:56]}  O-O {[%clk 0:02:18]} 10. Be2 {[%clk 0:02:55]}  Nfd7 {[%clk 0:01:57]} 11. O-O {[%clk 0:02:49]}  e5 {[%clk 0:01:54]} 12. Be3 {[%clk 0:02:48]}  Bg5 {[%clk 0:01:54]} 13. Bxg5 {[%clk 0:02:44]}  Qxg5 {[%clk 0:01:54]} 14. Nb5 {[%clk 0:02:41]}  Qd8 {[%clk 0:01:13]} 15. Nxd6 {[%clk 0:02:41]}  Bc8 {[%clk 0:01:07]} 16. Bg4 {[%clk 0:02:31]}  Ba6 {[%clk 0:01:03]} 17. Bxd7 {[%clk 0:02:26]}  Qxd7 {[%clk 0:00:55]} 18. Nf5 {[%clk 0:02:25]}  g6 {[%clk 0:00:55]} 19. Ne3 {[%clk 0:02:21]}  f5 {[%clk 0:00:52]} 20. exf5 {[%clk 0:02:10]}  gxf5 {[%clk 0:00:52]} 21. f4 {[%clk 0:02:10]}  e4 {[%clk 0:00:52]} 22. h3 {[%clk 0:01:47]}  Qg7 {[%clk 0:00:52]} 23. g4 {[%clk 0:01:47]}  Bc8 {[%clk 0:00:47]} 24. Kh2 {[%clk 0:01:41]}  Qxb2 {[%clk 0:00:45]} 25. gxf5 {[%clk 0:01:37]}  Kh8 {[%clk 0:00:40]} 26. Rg1 {[%clk 0:01:26]}  Nd7 {[%clk 0:00:37]} 27. Rb1 {[%clk 0:01:02]}  Qd4 {[%clk 0:00:36]} 28. Qe2 {[%clk 0:01:02]}  Nf6 {[%clk 0:00:34]} 29. Rg3 {[%clk 0:00:57]}  Bd7 {[%clk 0:00:30]} 30. Rbg1 {[%clk 0:00:53]}  Rg8 {[%clk 0:00:26]} 31. Rg5 {[%clk 0:00:46]}  Rae8 {[%clk 0:00:23]} 32. Nb3 {[%clk 0:00:40]}  Qd3 {[%clk 0:00:21]} 33. Qf2 {[%clk 0:00:41]}  Ref8 {[%clk 0:00:08]} 34. Qb2 {[%clk 0:00:36]} 1-0


[Site "https://www.chess.com"]

[Event "Titled Tuesday Blitz June 07 Late 2022"]
[White "Lobanov, Sergei"]
[Black "Mendonca, Mateus Nakajo"]
[WhiteFideId "24183750"]
[BlackFideId "2110954"]
[WhiteElo "2524"]
[BlackElo "2185"]
[Result "1-0"]
[Round "04"]
[TimeControl "180+1"]
[Date "2022.06.07"]
[WhiteClock "0:00:51"]
[BlackClock "0:00:03"]

1. e4 {[%clk 0:03:00]}  e5 {[%clk 0:02:59]} 2. Nf3 {[%clk 0:03:00]}  Nf6 {[%clk 0:02:59]} 3. d4 {[%clk 0:02:59]}  Nxe4 {[%clk 0:02:59]} 4. Bd3 {[%clk 0:02:58]}  Nc6 {[%clk 0:02:59]} 5. Nxe5 {[%clk 0:02:53]}  Nxe5 {[%clk 0:02:58]} 6. dxe5 {[%clk 0:02:54]}  Nc5 {[%clk 0:02:58]} 7. Bc4 {[%clk 0:02:55]}  d6 {[%clk 0:02:53]} 8. Qf3 {[%clk 0:02:54]}  Ne6 {[%clk 0:02:50]} 9. exd6 {[%clk 0:02:48]}  Bxd6 {[%clk 0:02:51]} 10. Nc3 {[%clk 0:02:48]}  O-O {[%clk 0:02:49]} 11. Be3 {[%clk 0:02:43]}  Be5 {[%clk 0:02:44]} 12. Bd3 {[%clk 0:02:37]}  Qf6 {[%clk 0:02:15]} 13. Qxf6 {[%clk 0:02:18]}  Bxf6 {[%clk 0:02:16]} 14. O-O-O {[%clk 0:02:18]}  c6 {[%clk 0:01:40]} 15. Ne4 {[%clk 0:02:04]}  Be7 {[%clk 0:01:39]} 16. Bc4 {[%clk 0:02:04]}  Nc7 {[%clk 0:01:17]} 17. Nc5 {[%clk 0:01:49]}  b6 {[%clk 0:01:04]} 18. Nd7 {[%clk 0:01:46]}  Re8 {[%clk 0:01:01]} 19. Ne5 {[%clk 0:01:41]}  Be6 {[%clk 0:00:38]} 20. Bxe6 {[%clk 0:01:37]}  Nxe6 {[%clk 0:00:39]} 21. Nxc6 {[%clk 0:01:37]}  Bf6 {[%clk 0:00:38]} 22. Rd7 {[%clk 0:01:33]}  Nf8 {[%clk 0:00:14]} 23. Rb7 {[%clk 0:01:21]}  a5 {[%clk 0:00:04]} 24. a4 {[%clk 0:01:17]}  Ne6 {[%clk 0:00:03]} 25. Rd1 {[%clk 0:01:10]}  Rec8 {[%clk 0:00:03]} 26. Rxb6 {[%clk 0:01:08]}  h5 {[%clk 0:00:03]} 27. Rd7 {[%clk 0:00:53]}  g6 {[%clk 0:00:03]} 28. Ne7+ {[%clk 0:00:51]}  Bxe7 {[%clk 0:00:03]} 29. Rxe7 {[%clk 0:00:52]}  Nf8 {[%clk 0:00:03]} 30. Rbb7 {[%clk 0:00:51]}  Rab8 {[%clk 0:00:03]} 31. Rxf7 {[%clk 0:00:51]} 1-0


[Site "https://www.chess.com"]

[Event "Titled Tuesday Blitz June 07 Late 2022"]
[White "Makarian, Rudik"]
[Black "Flores Quillas, Diego Saul Rodri"]
[WhiteFideId "44105681"]
[BlackFideId "3822508"]
[WhiteElo "2398"]
[BlackElo "2167"]
[Result "1-0"]
[Round "04"]
[TimeControl "180+1"]
[Date "2022.06.07"]
[WhiteClock "0:00:42"]
[BlackClock "0:00:48"]

1. d3 {[%clk 0:03:00]}  d5 {[%clk 0:02:58]} 2. f4 {[%clk 0:03:00]}  Nc6 {[%clk 0:02:53]} 3. Nf3 {[%clk 0:02:59]}  Nf6 {[%clk 0:02:53]} 4. g3 {[%clk 0:02:59]}  g6 {[%clk 0:02:47]} 5. Bg2 {[%clk 0:03:00]}  Bg7 {[%clk 0:02:47]} 6. O-O {[%clk 0:03:00]}  O-O {[%clk 0:02:48]} 7. c3 {[%clk 0:03:00]}  Re8 {[%clk 0:02:40]} 8. d4 {[%clk 0:03:00]}  Bf5 {[%clk 0:02:38]} 9. Nbd2 {[%clk 0:03:01]}  Qd7 {[%clk 0:02:38]} 10. Ne5 {[%clk 0:03:00]}  Nxe5 {[%clk 0:02:36]} 11. fxe5 {[%clk 0:03:01]}  Ne4 {[%clk 0:02:36]} 12. Nxe4 {[%clk 0:03:02]}  Bxe4 {[%clk 0:02:37]} 13. Bxe4 {[%clk 0:02:59]}  dxe4 {[%clk 0:02:38]} 14. Qb3 {[%clk 0:03:00]}  e6 {[%clk 0:02:32]} 15. Qxb7 {[%clk 0:03:00]}  Qd5 {[%clk 0:02:28]} 16. Qxd5 {[%clk 0:03:00]}  exd5 {[%clk 0:02:29]} 17. a4 {[%clk 0:02:36]}  Rab8 {[%clk 0:02:22]} 18. a5 {[%clk 0:02:36]}  a6 {[%clk 0:02:22]} 19. b4 {[%clk 0:02:36]}  Re6 {[%clk 0:02:18]} 20. Bg5 {[%clk 0:02:32]}  h6 {[%clk 0:02:15]} 21. Bf6 {[%clk 0:02:26]}  Bxf6 {[%clk 0:02:10]} 22. exf6 {[%clk 0:02:20]}  Rc6 {[%clk 0:02:07]} 23. Rac1 {[%clk 0:02:20]}  Re8 {[%clk 0:02:06]} 24. Kg2 {[%clk 0:01:58]}  Rc4 {[%clk 0:02:00]} 25. Kf2 {[%clk 0:01:54]}  Re6 {[%clk 0:02:01]} 26. Ke3 {[%clk 0:01:54]}  Kf8 {[%clk 0:01:59]} 27. g4 {[%clk 0:01:52]}  Rcc6 {[%clk 0:01:56]} 28. h4 {[%clk 0:01:50]}  Rc4 {[%clk 0:01:36]} 29. h5 {[%clk 0:01:31]}  g5 {[%clk 0:01:33]} 30. Rf5 {[%clk 0:01:31]}  c6 {[%clk 0:01:34]} 31. Kd2 {[%clk 0:01:14]}  Ke8 {[%clk 0:01:29]} 32. b5 {[%clk 0:01:06]}  axb5 {[%clk 0:01:27]} 33. Ra1 {[%clk 0:01:06]}  Kd7 {[%clk 0:00:58]} 34. a6 {[%clk 0:01:06]}  Re8 {[%clk 0:00:58]} 35. Re5 {[%clk 0:01:02]}  Ra8 {[%clk 0:00:58]} 36. Re7+ {[%clk 0:01:02]}  Kd6 {[%clk 0:00:59]} 37. e3 {[%clk 0:00:53]}  Ra4 {[%clk 0:00:56]} 38. Rxa4 {[%clk 0:00:52]}  bxa4 {[%clk 0:00:57]} 39. a7 {[%clk 0:00:50]}  c5 {[%clk 0:00:57]} 40. Kc2 {[%clk 0:00:47]}  cxd4 {[%clk 0:00:56]} 41. cxd4 {[%clk 0:00:48]}  Kc6 {[%clk 0:00:56]} 42. Rxf7 {[%clk 0:00:46]}  Kd6 {[%clk 0:00:48]} 43. Kb2 {[%clk 0:00:41]}  Ke6 {[%clk 0:00:48]} 44. Rh7 {[%clk 0:00:41]}  Kxf6 {[%clk 0:00:48]} 45. Rxh6+ {[%clk 0:00:41]}  Kg7 {[%clk 0:00:48]} 46. Ra6 {[%clk 0:00:42]} 1-0


[Site "https://www.chess.com"]

[Event "Titled Tuesday Blitz June 07 Late 2022"]
[White "Matlakov, Maxim"]
[Black "Barria Zuniga, Daniel"]
[WhiteFideId "4168003"]
[BlackFideId "3400816"]
[WhiteElo "2669"]
[BlackElo "2414"]
[Result "1-0"]
[Round "04"]
[TimeControl "180+1"]
[Date "2022.06.07"]
[WhiteClock "0:01:07"]
[BlackClock "0:00:03"]

1. Nf3 {[%clk 0:03:00]}  Nf6 {[%clk 0:02:56]} 2. b3 {[%clk 0:03:00]}  e6 {[%clk 0:02:54]} 3. Bb2 {[%clk 0:03:00]}  b5 {[%clk 0:02:54]} 4. e3 {[%clk 0:02:59]}  a6 {[%clk 0:02:52]} 5. d4 {[%clk 0:02:56]}  Bb7 {[%clk 0:02:51]} 6. Bd3 {[%clk 0:02:56]}  c5 {[%clk 0:02:48]} 7. Nbd2 {[%clk 0:02:55]}  Nc6 {[%clk 0:02:47]} 8. c4 {[%clk 0:02:51]}  b4 {[%clk 0:02:40]} 9. O-O {[%clk 0:02:41]}  a5 {[%clk 0:02:37]} 10. Ne4 {[%clk 0:02:37]}  Nxe4 {[%clk 0:01:59]} 11. Bxe4 {[%clk 0:02:38]}  f5 {[%clk 0:01:59]} 12. Bc2 {[%clk 0:02:30]}  Bd6 {[%clk 0:01:50]} 13. d5 {[%clk 0:02:25]}  exd5 {[%clk 0:01:35]} 14. Qxd5 {[%clk 0:02:15]}  Qe7 {[%clk 0:01:17]} 15. Rfd1 {[%clk 0:02:12]}  Bc7 {[%clk 0:01:16]} 16. Bxf5 {[%clk 0:02:11]}  O-O-O {[%clk 0:01:16]} 17. Qd3 {[%clk 0:01:59]}  Rhf8 {[%clk 0:01:05]} 18. Be4 {[%clk 0:01:57]}  g5 {[%clk 0:01:02]} 19. Bd5 {[%clk 0:01:47]}  g4 {[%clk 0:01:01]} 20. Nd2 {[%clk 0:01:40]}  Bxh2+ {[%clk 0:00:55]} 21. Kf1 {[%clk 0:01:41]}  Bg3 {[%clk 0:00:29]} 22. Ne4 {[%clk 0:01:40]}  Bxf2 {[%clk 0:00:19]} 23. Ke2 {[%clk 0:01:40]}  g3 {[%clk 0:00:12]} 24. Rh1 {[%clk 0:01:40]}  Ne5 {[%clk 0:00:05]} 25. Bxb7+ {[%clk 0:01:39]}  Kxb7 {[%clk 0:00:06]} 26. Qd5+ {[%clk 0:01:22]}  Nc6 {[%clk 0:00:06]} 27. Rad1 {[%clk 0:01:08]}  Qe8 {[%clk 0:00:03]} 28. Nd6+ {[%clk 0:01:07]} 1-0


[Site "https://www.chess.com"]

[Event "Titled Tuesday Blitz June 07 Late 2022"]
[White "Nakamura, Hikaru"]
[Black "Bluebaum, Matthias"]
[WhiteFideId "2016192"]
[BlackFideId "24651516"]
[WhiteElo "2850"]
[BlackElo "2556"]
[Result "1-0"]
[Round "04"]
[TimeControl "180+1"]
[Date "2022.06.07"]
[WhiteClock "0:02:00"]
[BlackClock "0:00:17"]

1. Nf3 {[%clk 0:03:00]}  d5 {[%clk 0:02:59]} 2. b3 {[%clk 0:03:00]}  Bg4 {[%clk 0:02:58]} 3. Bb2 {[%clk 0:03:01]}  Nd7 {[%clk 0:02:58]} 4. e3 {[%clk 0:03:01]}  Ngf6 {[%clk 0:02:58]} 5. h3 {[%clk 0:03:01]}  Bh5 {[%clk 0:02:59]} 6. d3 {[%clk 0:03:02]}  a5 {[%clk 0:02:57]} 7. g4 {[%clk 0:03:01]}  Bg6 {[%clk 0:02:57]} 8. Nh4 {[%clk 0:03:01]}  a4 {[%clk 0:02:58]} 9. Nd2 {[%clk 0:03:01]}  a3 {[%clk 0:02:58]} 10. Bc1 {[%clk 0:03:01]}  e5 {[%clk 0:02:52]} 11. c3 {[%clk 0:03:01]}  Bd6 {[%clk 0:02:50]} 12. Nxg6 {[%clk 0:03:00]}  hxg6 {[%clk 0:02:51]} 13. Bg2 {[%clk 0:03:00]}  c6 {[%clk 0:02:51]} 14. b4 {[%clk 0:02:55]}  Qb6 {[%clk 0:02:03]} 15. Qb3 {[%clk 0:02:53]}  Qa6 {[%clk 0:02:04]} 16. c4 {[%clk 0:02:52]}  Qa4 {[%clk 0:01:58]} 17. g5 {[%clk 0:02:39]}  Nh7 {[%clk 0:01:50]} 18. cxd5 {[%clk 0:02:38]}  Bxb4 {[%clk 0:01:22]} 19. Qxa4 {[%clk 0:02:26]}  Rxa4 {[%clk 0:01:23]} 20. dxc6 {[%clk 0:02:26]}  bxc6 {[%clk 0:01:24]} 21. h4 {[%clk 0:02:25]}  c5 {[%clk 0:01:19]} 22. Ke2 {[%clk 0:02:25]}  Ke7 {[%clk 0:01:16]} 23. Nc4 {[%clk 0:02:20]}  Ra6 {[%clk 0:01:11]} 24. Rb1 {[%clk 0:02:18]}  Nhf8 {[%clk 0:01:09]} 25. Bd2 {[%clk 0:02:16]}  Bxd2 {[%clk 0:00:44]} 26. Kxd2 {[%clk 0:02:16]}  Ne6 {[%clk 0:00:44]} 27. Rb7 {[%clk 0:02:16]}  Kd8 {[%clk 0:00:29]} 28. Rb3 {[%clk 0:02:08]}  Ke7 {[%clk 0:00:28]} 29. Rxa3 {[%clk 0:02:03]}  Rxa3 {[%clk 0:00:28]} 30. Nxa3 {[%clk 0:02:03]}  Rb8 {[%clk 0:00:28]} 31. Nc4 {[%clk 0:02:03]}  Nb6 {[%clk 0:00:28]} 32. Nxe5 {[%clk 0:02:03]}  Nd8 {[%clk 0:00:23]} 33. Kc2 {[%clk 0:02:00]}  Kd6 {[%clk 0:00:17]} 34. f4 {[%clk 0:02:00]}  Nd5 {[%clk 0:00:16]} 35. Bxd5 {[%clk 0:02:00]}  Kxd5 {[%clk 0:00:17]} 36. a4 {[%clk 0:01:58]}  Ra8 {[%clk 0:00:13]} 37. Nc4 {[%clk 0:01:58]}  Ke6 {[%clk 0:00:10]} 38. a5 {[%clk 0:01:58]}  Nc6 {[%clk 0:00:10]} 39. Ra1 {[%clk 0:01:58]}  Nb4+ {[%clk 0:00:10]} 40. Kd2 {[%clk 0:01:58]}  Rd8 {[%clk 0:00:09]} 41. Ra3 {[%clk 0:01:58]}  Na6 {[%clk 0:00:08]} 42. e4 {[%clk 0:01:53]}  Rh8 {[%clk 0:00:06]} 43. Rb3 {[%clk 0:01:54]}  Nb4 {[%clk 0:00:07]} 44. d4 {[%clk 0:01:55]}  Rxh4 {[%clk 0:00:06]} 45. dxc5 {[%clk 0:01:55]}  Rh1 {[%clk 0:00:07]} 46. Rxb4 {[%clk 0:01:55]}  Rh2+ {[%clk 0:00:08]} 47. Kd3 {[%clk 0:01:55]}  Rh3+ {[%clk 0:00:09]} 48. Ne3 {[%clk 0:01:56]}  Rxe3+ {[%clk 0:00:09]} 49. Kxe3 {[%clk 0:01:56]}  f5 {[%clk 0:00:10]} 50. Rb6+ {[%clk 0:01:55]}  Kf7 {[%clk 0:00:10]} 51. e5 {[%clk 0:01:55]}  Kg8 {[%clk 0:00:11]} 52. Rxg6 {[%clk 0:01:55]}  Kh7 {[%clk 0:00:12]} 53. Rd6 {[%clk 0:01:56]}  Kh8 {[%clk 0:00:13]} 54. g6 {[%clk 0:01:56]}  Kg8 {[%clk 0:00:13]} 55. Kf3 {[%clk 0:01:56]}  Kf8 {[%clk 0:00:13]} 56. Kg3 {[%clk 0:01:57]}  Ke8 {[%clk 0:00:14]} 57. Kh4 {[%clk 0:01:58]}  Kf8 {[%clk 0:00:15]} 58. Kg5 {[%clk 0:01:59]}  Kg8 {[%clk 0:00:16]} 59. Kxf5 {[%clk 0:02:00]}  Kf8 {[%clk 0:00:16]} 60. Ke6 {[%clk 0:02:00]}  Ke8 {[%clk 0:00:17]} 61. Rd7 {[%clk 0:02:00]} 1-0


[Site "https://www.chess.com"]

[Event "Titled Tuesday Blitz June 07 Late 2022"]
[White "Pakleza, Zbigniew"]
[Black "Adla, Diego"]
[WhiteFideId "1119290"]
[BlackFideId "100072"]
[WhiteElo "2467"]
[BlackElo "2377"]
[Result "0-1"]
[Round "04"]
[TimeControl "180+1"]
[Date "2022.06.07"]
[WhiteClock "0:00:03"]
[BlackClock "0:00:15"]

1. d4 {[%clk 0:03:00]}  Nf6 {[%clk 0:02:59]} 2. Nf3 {[%clk 0:03:01]}  d5 {[%clk 0:02:59]} 3. Bf4 {[%clk 0:02:59]}  c5 {[%clk 0:02:58]} 4. c3 {[%clk 0:02:59]}  Nc6 {[%clk 0:02:58]} 5. Nbd2 {[%clk 0:03:00]}  Nh5 {[%clk 0:02:57]} 6. Be5 {[%clk 0:02:58]}  f6 {[%clk 0:02:53]} 7. Bg3 {[%clk 0:02:58]}  Nxg3 {[%clk 0:02:51]} 8. hxg3 {[%clk 0:02:59]}  e5 {[%clk 0:02:50]} 9. dxe5 {[%clk 0:02:56]}  fxe5 {[%clk 0:02:50]} 10. e4 {[%clk 0:02:56]}  d4 {[%clk 0:02:50]} 11. Bb5 {[%clk 0:02:46]}  Bd6 {[%clk 0:02:20]} 12. Nxe5 {[%clk 0:02:17]}  Bxe5 {[%clk 0:01:57]} 13. Bxc6+ {[%clk 0:02:16]}  bxc6 {[%clk 0:01:56]} 14. Qh5+ {[%clk 0:02:14]}  Kf8 {[%clk 0:01:49]} 15. Qxe5 {[%clk 0:02:14]}  Qe7 {[%clk 0:01:47]} 16. cxd4 {[%clk 0:02:03]}  cxd4 {[%clk 0:01:45]} 17. Qxd4 {[%clk 0:02:00]}  Ba6 {[%clk 0:01:42]} 18. Nb3 {[%clk 0:01:27]}  Kf7 {[%clk 0:01:26]} 19. f3 {[%clk 0:01:12]}  Rad8 {[%clk 0:01:18]} 20. Qc5 {[%clk 0:01:10]}  Qc7 {[%clk 0:01:06]} 21. Qf5+ {[%clk 0:00:57]}  Kg8 {[%clk 0:01:05]} 22. f4 {[%clk 0:00:20]}  g6 {[%clk 0:00:52]} 23. Qe6+ {[%clk 0:00:17]}  Kg7 {[%clk 0:00:52]} 24. e5 {[%clk 0:00:17]}  Rhf8 {[%clk 0:00:48]} 25. Rd1 {[%clk 0:00:10]}  Bd3 {[%clk 0:00:36]} 26. g4 {[%clk 0:00:04]}  Rxf4 {[%clk 0:00:31]} 27. Kd2 {[%clk 0:00:02]}  Bf5+ {[%clk 0:00:29]} 28. Ke3 {[%clk 0:00:02]}  Bxe6 {[%clk 0:00:26]} 29. Kxf4 {[%clk 0:00:03]}  Rf8+ {[%clk 0:00:24]} 30. Kg3 {[%clk 0:00:03]}  Qxe5+ {[%clk 0:00:23]} 31. Kh3 {[%clk 0:00:04]}  Qe3+ {[%clk 0:00:20]} 32. Kh2 {[%clk 0:00:03]}  Qf4+ {[%clk 0:00:19]} 33. Kg1 {[%clk 0:00:03]}  Qf2+ {[%clk 0:00:17]} 34. Kh2 {[%clk 0:00:03]}  Bd5 {[%clk 0:00:15]} 0-1


[Site "https://www.chess.com"]